bitfinex/quotes_SOLUSD_20250922
["timestamp","ask_amount","ask_price","bid_price","bid_amount"]
[1758538548116,4.48833034,222.8,222.68,60.2824146]
[1758538548295,26.0,222.77,222.69,0.68]
[1758538548498,26.0,222.77,222.71,1.35154061]
[1758538548697,1.35154061,222.78,222.71,2.03154061]
[1758538549018,26.0,222.77,222.72,2.03154061]
[1758538549192,30.48910955,222.77,222.73,0.68]
[1758538549396,30.48910955,222.77,222.74,0.68]
[1758538549700,4.48910955,222.77,222.74,0.68]
[1758538549891,30.48910955,222.77,222.74,0.68]
[1758538550792,30.48910955,222.77,222.72,2.03154061]
[1758538550992,30.48910955,222.77,222.73,0.68]
[1758538551188,4.48910955,222.77,222.71,2.03154061]
[1758538551614,17.06298709,222.77,222.7,0.68]
[1758538552732,15.71144648,222.77,222.7,2.03154061]
[1758538552898,17.06298709,222.77,222.7,2.03154061]
[1758538553096,17.06298709,222.77,222.71,0.68]
[1758538554417,15.71144648,222.77,222.71,2.03154061]
[1758538554604,15.71144648,222.77,222.71,1.35154061]
[1758538554808,15.71144648,222.77,222.72,0.68]
[1758538556020,4.48910955,222.77,222.71,1.35154061]
[1758538556228,4.48910955,222.77,222.73,0.68]
[1758538557111,4.48910955,222.77,222.74,0.71]
[1758538558204,4.48910955,222.77,222.72,2.06154061]
[1758538558405,4.48910955,222.77,222.73,0.71]
[1758538558711,4.48811803,222.82,222.75,1.35154061]
[1758538559021,4.49002076,222.81,222.76,0.71]
[1758538559321,4.48811803,222.82,222.78,1.35154061]
[1758538559500,4.48811803,222.82,222.79,0.71]
[1758538559697,4.48671931,222.88,222.81,1.35154061]
[1758538559917,1.35154061,222.84,222.78,0.71]
[1758538560126,1.35154061,222.83,222.78,0.71]
[1758538560324,4.48772606,222.83,222.78,0.71]
[1758538560501,4.48772606,222.83,222.79,0.71]
[1758538562124,4.48754058,222.84,222.8,0.71]
[1758538562416,4.48692062,222.87,222.81,1.35154061]
[1758538562627,4.48692062,222.87,222.82,0.71]
[1758538562804,4.48692062,222.87,222.83,0.71]
[1758538563718,4.48772606,222.83,222.68,13.59559401]
[1758538563920,1.35154061,222.82,222.77,13.49679452]
[1758538564115,1.35154061,222.82,222.74,1.35154061]
[1758538564315,1.35154061,222.82,222.75,1.35154061]
[1758538565017,17.98917522,222.81,222.75,1.35154061]
[1758538565409,29.20949746,222.81,222.75,1.35154061]
[1758538565613,29.20949746,222.81,222.74,2.06154061]
[1758538565805,29.20949746,222.81,222.75,1.35154061]
[1758538567123,13.50104633,222.81,222.79,1.35154061]
[1758538567326,4.48749893,222.85,222.8,2.06154061]
[1758538567506,6.28739543,222.85,222.8,2.06154061]
[1758538568307,6.28739543,222.85,222.82,1.35154061]
[1758538568504,7.50507018,222.86,222.83,2.06154061]
[1758538568817,4.48714638,222.86,222.83,2.06154061]
[1758538569000,7.50507018,222.86,222.83,2.06154061]
[1758538569200,30.48714638,222.86,222.82,1.35154061]
[1758538569404,30.48714638,222.86,222.82,0.71]
[1758538569621,30.48714638,222.86,222.81,1.35154061]
[1758538569815,30.48714638,222.86,222.82,1.35154061]
[1758538570216,30.48714638,222.86,222.81,2.06154061]
[1758538570418,41.70495127,222.86,222.78,0.71]
[1758538570626,17.05649188,222.86,222.78,2.06154061]
[1758538570812,30.55571568,222.86,222.78,2.06154061]
[1758538571511,30.55571568,222.86,222.79,1.35154061]
[1758538571716,4.48714638,222.86,222.81,1.35154061]
[1758538571915,7.50427815,222.86,222.82,1.35154061]
[1758538572320,7.50427815,222.86,222.82,2.06154061]
[1758538572821,7.50427815,222.86,222.79,0.71]
[1758538573031,26.0,222.84,222.79,1.35154061]
[1758538573222,26.0,222.84,222.78,1.35154061]
[1758538573524,26.0,222.84,222.79,1.35154061]
[1758538573825,4.48772606,222.83,222.79,1.35154061]
[1758538574022,4.48772606,222.83,222.77,0.71]
[1758538574422,4.48772606,222.83,222.78,1.35154061]
[1758538574626,4.48772606,222.83,222.78,2.11231621]
[1758538574808,4.48772606,222.83,222.78,2.83231621]
[1758538575327,4.48772606,222.83,222.78,2.11231621]
[1758538575629,4.48772606,222.83,222.79,2.83231621]
[1758538575807,4.48772606,222.83,222.77,0.72]
[1758538576014,4.48772606,222.83,222.79,2.11231621]
[1758538576742,4.48772606,222.83,222.78,2.11231621]
[1758538577026,17.81935744,222.83,222.76,2.11231621]
[1758538577216,30.48913487,222.87,222.81,2.11231621]
[1758538577414,30.48913487,222.87,222.81,2.83231621]
[1758538577613,26.0,222.87,222.81,2.83231621]
[1758538577834,30.48930937,222.87,222.81,2.83231621]
[1758538578130,4.48930937,222.87,222.81,2.83231621]
[1758538578439,4.48712195,222.86,222.81,0.72]
[1758538579010,4.48712195,222.86,222.82,0.72]
[1758538579216,4.48712195,222.86,222.83,0.72]
[1758538579513,4.48692062,222.87,222.83,0.72]
[1758538580122,4.48692062,222.87,222.81,2.11231621]
[1758538580123,4.48692062,222.87,222.84,0.72]
[1758538581431,4.48692062,222.87,222.82,2.11231621]
[1758538581931,4.48692062,222.87,222.83,0.72]
[1758538582428,4.48611547,222.91,222.86,2.11231621]
[1758538582634,8.97424348,222.91,222.86,2.83231621]
[1758538583630,4.48611547,222.91,222.86,2.83231621]
[1758538584025,4.48611547,222.91,222.86,0.72]
[1758538586348,15.70325789,222.92,222.87,0.72]
[1758538586349,4.48812801,222.92,222.87,0.72]
[1758538586530,0.1,222.93,222.89,2.11231621]
[1758538586840,0.1,222.93,222.9,0.72]
[1758538587338,0.1,222.93,222.89,2.11231621]
[1758538587339,0.1,222.93,222.91,0.68]
[1758538588638,0.1,222.93,222.9,2.11231621]
[1758538588832,0.1,222.93,222.92,0.68]
[1758538589743,0.1,222.93,222.92,7.27823043]
[1758538590323,0.1,222.93,222.92,5.16591422]
[1758538590531,2.21231621,222.93,222.84,0.68]
[1758538590724,2.11231621,222.91,222.84,0.68]
[1758538590929,2.11231621,222.91,222.84,2.79231621]
[1758538591142,2.11231621,222.92,222.85,2.11231621]
[1758538591539,4.48611547,222.91,222.85,2.11231621]
[1758538591724,4.48611547,222.91,222.85,2.79231621]
[1758538593277,4.48611547,222.91,222.85,7.27962168]
[1758538593432,9.07233436,222.93,222.87,2.11231621]
[1758538593635,4.58589197,222.93,222.88,0.68]
[1758538593945,4.58589197,222.93,222.89,0.68]
[1758538594447,4.58589197,222.93,222.9,0.68]
[1758538594448,0.1,222.93,222.9,0.68]
[1758538594830,0.1,222.93,222.91,0.68]
[1758538595656,0.1,222.93,222.89,4.48651703]
[1758538595836,0.1,222.93,222.9,0.68]
[1758538596651,0.1,222.93,222.91,0.68]
[1758538597146,0.1,222.93,222.92,0.68]
[1758538597530,0.1,222.93,222.9,2.79231621]
[1758538597951,0.1,222.93,222.91,0.68]
[1758538598550,0.1,222.93,222.92,0.68]
[1758538601548,0.1,222.93,222.9,0.68]
[1758538601857,0.1,222.93,222.92,0.68]
[1758538605336,0.1,222.93,222.92,7.27823043]
[1758538607433,11.20903123,223.04,222.92,18.493016]
[1758538607636,0.1,223.1,223.03,2.11231621]
[1758538607835,0.2,223.1,222.98,35.96]
[1758538608036,4.58270647,223.08,222.99,0.68]
[1758538608302,0.1,223.07,223.01,2.11231621]
[1758538608752,0.1,223.06,223.01,2.11231621]
[1758538609330,15.88944844,223.08,223.02,2.11231621]
[1758538610366,2.11231621,223.07,223.01,0.68]
[1758538611058,15.88944844,223.08,223.01,0.68]
[1758538611262,2.11231621,223.07,223.01,0.68]
[1758538612046,2.11231621,223.03,222.97,0.68]
[1758538612252,2.11231621,223.02,222.97,0.68]
[1758538612458,2.11231621,223.02,222.98,0.68]
[1758538612744,2.11231621,223.03,222.98,0.68]
[1758538613368,4.48390278,223.02,222.98,0.68]
[1758538614170,15.69365975,223.02,222.98,0.68]
[1758538615467,11.20975697,223.02,222.98,0.68]
[1758538615666,11.20975697,223.02,222.96,2.11231621]
[1758538615865,13.32207318,223.02,222.97,0.68]
[1758538616257,11.20975697,223.02,222.98,0.68]
[1758538616565,15.69365975,223.02,222.97,2.11231621]
[1758538616772,15.69365975,223.02,222.98,0.68]
[1758538617166,15.69365975,223.02,222.98,2.79231621]
[1758538617348,15.69365975,223.02,222.99,0.69]
[1758538617554,15.69365975,223.02,223.0,0.69]
[1758538617861,4.48390278,223.02,223.0,0.69]
[1758538618179,4.48390278,223.02,222.99,0.69]
[1758538618671,4.48370174,223.03,223.0,0.69]
[1758538619670,15.6929561,223.03,223.0,0.69]
[1758538620252,15.6929561,223.03,222.96,2.11231621]
[1758538620253,17.30527231,223.03,222.96,2.11231621]
[1758538620454,17.30527231,223.03,222.97,0.69]
[1758538621270,2.11231621,223.01,222.97,0.69]
[1758538621461,2.11231621,222.98,222.91,2.11231621]
[1758538621648,2.11231621,222.98,222.92,0.69]
[1758538622043,0.1,223.0,222.92,0.69]
[1758538622249,3.01079142,223.02,222.92,2.80231621]
[1758538622250,2.11231621,222.99,222.92,2.80231621]
[1758538622445,2.11231621,222.99,222.93,0.69]
[1758538623152,3.01079142,223.02,222.94,2.11231621]
[1758538623351,3.01079142,223.02,222.96,2.11231621]
[1758538623570,3.01079142,223.02,222.95,0.69]
[1758538623778,3.01079142,223.02,222.96,2.11231621]
[1758538623977,3.01079142,223.02,222.97,0.69]
[1758538624153,3.01079142,223.02,222.98,0.69]
[1758538624475,4.48410385,223.01,222.94,4.48542279]
[1758538624673,2.11231621,223.0,222.96,0.69]
[1758538625067,2.11231621,223.0,222.93,37.93231621]
[1758538625068,17.80667968,223.01,222.97,0.69]
[1758538625676,6.59642006,223.01,222.98,0.69]
[1758538625852,4.48391388,223.02,222.99,2.80231621]
[1758538626056,4.48391388,223.02,223.0,0.69]
[1758538626254,7.49787584,223.03,222.98,2.11231621]
[1758538626458,4.48372001,223.03,223.01,0.69]
[1758538626660,4.48372001,223.03,222.98,2.11231621]
[1758538626954,2.11231621,223.01,222.96,0.69]
[1758538627169,4.48372001,223.03,222.98,2.11231621]
[1758538627365,22.51386434,223.08,222.93,35.78]
[1758538627366,3.01469402,223.05,223.02,2.11231621]
[1758538627677,4.48289774,223.07,223.03,0.69]
[1758538627878,4.48289774,223.07,223.04,0.69]
[1758538628185,15.6901421,223.07,223.02,0.69]
[1758538628489,4.4832997,223.05,223.02,0.69]
[1758538628675,4.4832997,223.05,223.03,0.69]
[1758538629766,4.4832997,223.05,223.01,2.80231621]
[1758538629966,4.4832997,223.05,222.99,0.69]
[1758538630191,4.4832997,223.05,223.0,2.11231621]
[1758538630387,4.4832997,223.05,223.01,0.69]
[1758538630577,4.4832997,223.05,223.01,2.80231621]
[1758538630886,4.4832997,223.05,223.02,0.69]
[1758538631087,4.4832997,223.05,223.01,0.69]
[1758538631470,4.4832997,223.05,223.01,2.11231621]
[1758538631674,4.4832997,223.05,223.02,0.69]
[1758538632479,4.4832997,223.05,223.03,0.69]
[1758538632887,4.4832997,223.05,223.01,2.80231621]
[1758538633183,4.4832997,223.05,223.02,0.69]
[1758538634094,7.49779973,223.06,223.03,0.66]
[1758538634288,4.48310571,223.06,223.03,0.66]
[1758538634470,4.48310571,223.06,223.04,0.66]
[1758538634670,4.48310571,223.06,223.02,0.66]
[1758538634865,4.48310571,223.06,223.01,1.34890141]
[1758538635075,11.30684933,223.08,223.05,1.34890141]
[1758538635076,4.58274165,223.08,223.05,1.34890141]
[1758538635274,4.58274165,223.08,223.06,0.66]
[1758538635595,4.58274165,223.08,223.04,2.00890141]
[1758538635791,4.58274165,223.08,223.05,0.66]
[1758538636166,0.1,223.08,223.05,0.66]
[1758538636373,0.1,223.08,223.06,0.66]
[1758538636569,0.1,223.08,223.07,0.66]
[1758538637071,0.1,223.08,223.05,2.00890141]
[1758538637273,0.1,223.08,223.06,2.00890141]
[1758538637775,0.1,223.08,223.06,0.66]
[1758538638176,0.1,223.08,223.02,35.82]
[1758538638177,0.1,223.08,223.07,0.66]
[1758538638984,0.1,223.08,223.07,2.00890141]
[1758538639499,0.1,223.08,223.07,0.66]
[1758538639873,0.1,223.08,223.05,1.34890141]
[1758538640074,0.1,223.08,223.05,2.00890141]
[1758538640275,0.1,223.08,223.06,0.66]
[1758538640686,0.1,223.08,223.04,1.34890141]
[1758538641208,1.34890141,223.07,223.03,0.66]
[1758538641514,4.58279942,223.08,223.03,0.66]
[1758538641709,5.93170083,223.08,223.03,0.66]
[1758538642007,5.93170083,223.08,223.04,0.66]
[1758538643100,4.58279942,223.08,223.01,1.34890141]
[1758538643312,5.93170083,223.08,223.02,2.00890141]
[1758538643684,4.58279942,223.08,223.02,2.00890141]
[1758538643900,5.93170083,223.08,223.02,1.34890141]
[1758538644203,5.93170083,223.08,223.03,0.66]
[1758538645303,5.93170083,223.08,223.04,0.66]
[1758538645707,4.58279942,223.08,223.04,0.66]
[1758538646003,5.93170083,223.08,223.05,0.66]
[1758538646191,5.93170083,223.08,223.03,0.66]
[1758538646389,4.58279942,223.08,223.04,0.66]
[1758538647807,4.58279942,223.08,223.05,0.69]
[1758538649700,4.58279942,223.08,222.99,35.76]
[1758538649701,17.1384428,223.08,222.96,13.33213588]
[1758538649911,17.1384428,223.08,223.02,2.03890141]
[1758538650314,17.2384428,223.08,223.0,0.69]
[1758538650616,1.34890141,223.07,223.0,2.03890141]
[1758538650910,1.34890141,223.07,223.0,1.34890141]
[1758538651121,1.34890141,223.07,223.0,0.69]
[1758538651303,1.34890141,223.07,223.0,2.03890141]
[1758538651505,1.34890141,223.07,223.0,1.34890141]
[1758538651705,1.34890141,223.07,223.01,0.69]
[1758538652816,17.2384428,223.08,223.01,2.03890141]
[1758538653200,17.2384428,223.08,223.01,0.69]
[1758538653422,17.2384428,223.08,223.01,2.03890141]
[1758538653622,15.88954139,223.08,223.02,0.69]
[1758538653926,17.1384428,223.08,223.02,0.69]
[1758538654818,1.34890141,223.05,222.98,0.69]
[1758538655022,1.44890141,223.05,222.98,2.03890141]
[1758538655520,3.11340395,223.07,223.0,1.34890141]
[1758538655824,4.58279942,223.08,223.05,1.34890141]
[1758538656117,4.58279942,223.08,223.05,0.69]
[1758538656513,4.58279942,223.08,223.03,2.03890141]
[1758538656708,4.58279942,223.08,223.04,0.69]
[1758538657722,15.88954139,223.08,223.03,1.34890141]
[1758538658023,15.78954139,223.08,223.03,2.03890141]
[1758538658332,15.78954139,223.08,223.03,1.34890141]
[1758538658497,15.78954139,223.08,223.04,0.69]
[1758538658920,15.78954139,223.08,223.03,1.34890141]
[1758538659118,15.78954139,223.08,223.03,2.03890141]
[1758538659705,17.1384428,223.08,223.03,0.69]
[1758538660222,15.78954139,223.08,223.03,0.69]
[1758538660522,15.78954139,223.08,223.03,2.03890141]
[1758538660847,4.58279942,223.08,223.04,2.03890141]
[1758538661003,4.58279942,223.08,223.05,0.69]
[1758538661404,4.58279942,223.08,223.03,1.34890141]
[1758538661605,4.58279942,223.08,223.03,2.03890141]
[1758538661805,4.58279942,223.08,223.04,0.69]
[1758538662209,4.58279942,223.08,223.05,0.69]
[1758538662419,0.1,223.08,223.06,0.69]
[1758538663015,4.58282146,223.08,223.04,2.03890141]
[1758538663203,4.58282146,223.08,223.05,0.69]
[1758538663818,4.58282146,223.08,223.06,0.69]
[1758538664026,4.58282146,223.08,223.04,2.03890141]
[1758538664226,4.58282146,223.08,223.05,0.69]
[1758538664521,4.58282146,223.08,223.04,0.69]
[1758538665026,4.58282146,223.08,223.05,0.69]
[1758538665402,4.58282146,223.08,223.04,1.34890141]
[1758538665601,4.58282146,223.08,223.05,0.69]
[1758538665825,15.78956343,223.08,222.99,4.48450603]
[1758538666027,17.13846484,223.08,223.02,2.03890141]
[1758538666613,1.34890141,223.06,223.02,0.69]
[1758538666810,1.34890141,223.03,222.96,0.69]
[1758538667010,1.34890141,223.01,222.96,0.69]
[1758538667418,1.34890141,223.0,222.94,0.69]
[1758538668026,1.34890141,223.0,222.94,2.03890141]
[1758538668344,4.48450603,222.99,222.94,2.03890141]
[1758538668529,4.48450603,222.99,222.95,0.69]
[1758538668830,4.48450603,222.99,222.95,2.03890141]
[1758538669033,4.48450603,222.99,222.96,0.69]
[1758538670234,4.48430493,223.0,222.96,0.69]
[1758538671938,4.48430493,223.0,222.95,1.34890141]
[1758538672140,4.48430493,223.0,222.97,0.69]
[1758538673227,17.04326488,223.01,222.95,0.69]
[1758538673430,15.69436347,223.01,222.95,0.69]
[1758538673613,1.34890141,223.0,222.95,0.69]
[1758538673817,1.34890141,223.0,222.96,0.69]
[1758538674251,17.04326488,223.01,222.97,0.69]
[1758538674422,1.34890141,223.0,222.91,17.75926798]
[1758538674630,1.34890141,222.98,222.92,2.03890141]
[1758538674842,0.1,223.0,222.93,0.69]
[1758538675150,4.48470714,222.98,222.93,2.03890141]
[1758538675355,4.48470714,222.98,222.94,0.69]
[1758538676025,4.48470714,222.98,222.95,0.69]
[1758538677332,4.48450603,222.99,222.95,2.03890141]
[1758538678241,4.48450603,222.99,222.96,0.67]
[1758538679623,4.48450603,222.99,222.97,0.67]
[1758538680048,4.48450603,222.99,222.95,0.67]
[1758538680354,5.83340744,222.99,222.96,0.67]
[1758538682048,11.21025962,223.01,222.96,0.67]
[1758538682256,1.34890141,223.0,222.96,0.67]
[1758538682940,1.34890141,222.97,222.94,10.32025883]
[1758538683138,11.21025962,223.01,222.9,4.48618147]
[1758538683139,1.34890141,222.96,222.91,0.67]
[1758538683364,1.34890141,222.96,222.92,0.67]
[1758538683536,3.01751236,223.0,222.95,1.34890141]
[1758538683854,4.48390278,223.02,222.97,1.34890141]
[1758538684062,4.48390278,223.02,222.98,1.34890141]
[1758538684268,4.48390278,223.02,222.98,2.01890141]
[1758538684561,4.48390278,223.02,222.98,0.67]
[1758538684954,4.48390278,223.02,222.88,13.98670953]
[1758538684955,1.34890141,222.99,222.88,13.98670953]
[1758538685154,1.34890141,222.97,222.9,2.01890141]
[1758538685357,3.11751236,223.01,222.94,1.34890141]
[1758538685559,1.34890141,223.0,222.94,2.01890141]
[1758538686873,4.48450603,222.99,222.94,2.01890141]
[1758538687050,7.50201839,222.99,222.95,0.67]
[1758538688970,4.48450603,222.99,222.95,0.67]
[1758538689180,4.48450603,222.99,222.96,0.67]
[1758538690251,11.21107995,223.0,222.97,0.67]
[1758538690656,11.21107995,223.0,222.95,1.34890141]
[1758538690657,11.21107995,223.0,222.95,2.01890141]
[1758538690841,12.55998136,223.0,222.95,0.67]
[1758538691042,4.48410385,223.01,222.96,2.01890141]
[1758538691242,7.50047663,223.01,222.97,0.67]
[1758538691668,8.84937804,223.01,222.97,0.67]
[1758538692661,7.50047663,223.01,222.97,0.67]
[1758538692842,20.05963766,223.01,222.97,0.67]
[1758538693045,17.04326488,223.01,222.94,1.34890141]
[1758538693247,17.04326488,223.01,222.95,0.67]
[1758538693869,17.04326488,223.01,222.95,2.01890141]
[1758538694069,17.04326488,223.01,222.96,0.67]
[1758538694247,15.69436347,223.01,222.95,1.34890141]
[1758538694448,17.04326488,223.01,222.96,0.7]
[1758538694848,1.34890141,223.0,222.96,0.7]
[1758538695877,4.48450603,222.99,222.96,0.7]
[1758538696054,4.48450603,222.99,222.95,0.7]
[1758538696254,4.48450603,222.99,222.96,0.7]
[1758538698071,6.59357757,223.01,222.97,0.7]
[1758538698396,11.2088814,223.04,222.98,0.7]
[1758538698560,7.50101151,223.03,222.98,2.80937396]
[1758538698759,2.10937396,223.05,222.99,0.7]
[1758538698760,3.01730977,223.04,222.99,0.7]
[1758538698971,2.10937396,223.05,223.0,0.7]
[1758538699172,4.48353351,223.04,223.0,0.7]
[1758538699657,6.59290747,223.04,223.0,0.7]
[1758538700165,4.4832997,223.05,223.0,0.7]
[1758538700368,2.10937396,223.04,223.0,0.7]
[1758538701377,4.48370174,223.03,223.0,0.7]
[1758538702157,4.48370174,223.03,222.98,2.80937396]
[1758538702553,4.48370174,223.03,222.96,4.4849422]
[1758538702775,6.5930757,223.03,222.97,2.80937396]
[1758538702955,6.5930757,223.03,222.98,0.7]
[1758538703682,0.1,223.02,222.95,0.7]
[1758538703983,2.10937396,223.0,222.94,2.10937396]
[1758538704183,2.10937396,223.0,222.94,2.80937396]
[1758538704570,2.10937396,222.99,222.94,0.7]
[1758538704878,2.10937396,222.98,222.92,0.7]
[1758538705462,4.48490828,222.97,222.92,0.7]
[1758538705681,4.48490828,222.97,222.93,0.7]
[1758538706482,4.48470714,222.98,222.93,0.7]
[1758538706780,2.10937396,222.96,222.91,0.7]
[1758538706991,2.10937396,222.96,222.92,0.7]
[1758538707173,15.79647501,222.98,222.88,13.31670953]
[1758538707174,2.10937396,222.97,222.91,2.10937396]
[1758538707379,2.10937396,222.97,222.88,17.80341557]
[1758538707681,2.20937396,222.97,222.91,2.10937396]
[1758538707879,2.10937396,222.96,222.9,2.78937396]
[1758538708071,3.12120165,222.97,222.91,0.68]
[1758538708396,4.48510943,222.96,222.91,0.68]
[1758538708585,15.69788302,222.96,222.92,0.68]
[1758538708767,2.10937396,222.95,222.92,0.68]
[1758538708966,17.80725698,222.96,222.92,0.68]
[1758538710381,2.10937396,222.93,222.87,0.68]
[1758538710582,2.10937396,222.91,222.87,0.68]
[1758538710982,5.13295994,222.91,222.85,38.50937396]
[1758538711487,2.10937396,222.9,222.85,36.4]
[1758538711698,2.10937396,222.89,222.8,13.59559401]
[1758538711865,2.10937396,222.88,222.84,0.68]
[1758538712068,2.10937396,222.88,222.85,0.68]
[1758538712273,2.10937396,222.88,222.83,0.68]
[1758538712587,4.48692062,222.87,222.83,0.68]
[1758538712968,4.48692062,222.87,222.82,2.10937396]
[1758538713174,4.48673244,222.88,222.84,0.68]
[1758538713467,4.48673244,222.88,222.85,0.68]
[1758538714287,6.5961064,222.88,222.83,0.68]
[1758538714673,6.5961064,222.88,222.84,0.68]
[1758538714873,2.10937396,222.86,222.8,0.68]
[1758538715072,2.10937396,222.85,222.8,0.68]
[1758538715287,2.10937396,222.84,222.81,0.68]
[1758538715673,2.10937396,222.83,222.79,0.68]
[1758538716087,2.10937396,222.82,222.79,0.68]
[1758538716790,4.48812889,222.81,222.79,0.68]
[1758538717181,2.10937396,222.82,222.79,0.68]
[1758538718075,0.1,222.85,222.79,0.68]
[1758538718270,0.1,222.87,222.79,0.68]
[1758538718483,2.10937396,222.84,222.79,0.68]
[1758538718691,2.10937396,222.83,222.8,0.68]
[1758538721275,26.0,222.88,222.81,0.68]
[1758538721475,2.10937396,222.83,222.81,0.68]
[1758538721699,2.10937396,222.83,222.79,5.16848417]
[1758538721889,2.10937396,222.83,222.8,0.68]
[1758538722595,2.10937396,222.83,222.79,4.48848417]
[1758538722802,2.10937396,222.83,222.79,5.16848417]
[1758538722998,2.10937396,222.83,222.79,4.48848417]
[1758538723321,2.10937396,222.81,222.79,0.68]
[1758538723808,0.1,222.85,222.79,0.68]
[1758538724000,2.10937396,222.82,222.79,0.68]
[1758538724305,0.1,222.84,222.78,0.2]
[1758538724506,2.10937396,222.85,222.8,0.68]
[1758538724716,2.10937396,222.84,222.8,0.68]
[1758538725083,2.10937396,222.84,222.8,5.16816479]
[1758538725404,2.10937396,222.84,222.81,0.68]
[1758538726912,2.10937396,222.82,222.79,5.16850845]
[1758538727600,2.10937396,222.82,222.8,0.68]
[1758538727793,2.10937396,222.83,222.81,0.68]
[1758538728299,2.10937396,222.86,222.81,0.68]
[1758538728501,2.10937396,222.86,222.79,17.81921191]
[1758538728688,0.1,222.88,222.81,5.16808234]
[1758538728896,2.10937396,222.84,222.81,5.16808234]
[1758538729609,2.10937396,222.86,222.82,0.68]
[1758538729804,2.10937396,222.86,222.83,0.68]
[1758538730614,2.10937396,222.85,222.82,4.48782209]
[1758538730796,26.0,222.88,222.81,0.68]
[1758538730797,2.10937396,222.84,222.81,0.68]
[1758538731409,2.10937396,222.84,222.79,11.2213295]
[1758538731585,2.10937396,222.84,222.82,0.68]
[1758538731894,2.10937396,222.85,222.82,0.68]
[1758538732094,26.0,222.88,222.82,0.68]
[1758538732288,2.10937396,222.85,222.82,0.68]
[1758538732492,2.10937396,222.85,222.83,0.68]
[1758538732690,2.10937396,222.86,222.83,5.16760237]
[1758538732890,2.10937396,222.86,222.84,0.68]
[1758538733097,2.10937396,222.86,222.83,4.48760237]
[1758538733296,2.10937396,222.86,222.83,5.16760237]
[1758538734610,2.10937396,222.87,222.83,5.16760237]
[1758538734796,2.10937396,222.86,222.83,5.16760237]
[1758538735441,26.0,222.88,222.83,0.68]
[1758538735716,2.10937396,222.86,222.83,0.68]
[1758538736106,2.10937396,222.86,222.82,4.48792747]
[1758538736416,2.10937396,222.86,222.83,0.68]
[1758538737410,0.1,222.89,222.83,5.16764519]
[1758538737612,2.10937396,222.86,222.83,5.16764519]
[1758538739301,2.10937396,222.93,222.85,2.10937396]
[1758538739516,2.10937396,222.92,222.86,2.82937396]
[1758538739721,2.10937396,222.92,222.87,0.72]
[1758538740502,2.10937396,222.91,222.87,0.72]
[1758538740800,2.10937396,222.91,222.88,0.72]
[1758538741122,2.10937396,222.91,222.89,0.72]
[1758538741425,2.10937396,222.91,222.87,0.72]
[1758538741595,2.10937396,222.91,222.88,0.72]
[1758538743721,35.52,222.92,222.88,0.72]
[1758538743929,2.10937396,222.91,222.89,0.72]
[1758538744429,37.62937396,222.92,222.89,0.72]
[1758538744631,37.62937396,222.92,222.87,5.20689287]
[1758538744924,37.62937396,222.92,222.88,0.72]
[1758538745933,37.62937396,222.92,222.89,0.72]
[1758538746123,2.10937396,222.91,222.89,0.72]
[1758538746508,2.10937396,222.91,222.86,6.59646169]
[1758538746716,2.10937396,222.91,222.87,0.72]
[1758538747517,2.10937396,222.91,222.86,6.59646169]
[1758538747518,2.10937396,222.91,222.86,4.48708773]
[1758538747832,2.10937396,222.91,222.87,0.72]
[1758538748027,2.10937396,222.91,222.88,0.72]
[1758538748413,2.10937396,222.9,222.88,0.72]
[1758538748911,35.52,222.92,222.88,0.72]
[1758538749111,2.10937396,222.9,222.88,0.72]
[1758538750635,35.52,222.92,222.88,0.72]
[1758538750836,2.10937396,222.9,222.88,0.72]
[1758538753527,2.10937396,222.9,222.86,5.20712069]
[1758538753726,2.10937396,222.9,222.86,0.72]
[1758538753930,2.10937396,222.9,222.87,0.72]
[1758538754233,2.10937396,222.9,222.84,2.10937396]
[1758538754437,2.10937396,222.9,222.87,0.69]
[1758538754734,2.10937396,222.9,222.88,0.69]
[1758538755320,2.10937396,222.97,222.89,2.10937396]
[1758538755520,3.02118075,222.96,222.92,2.10937396]
[1758538755718,3.02118075,222.97,222.93,0.69]